bitfinex-derivatives/quotes_BTCF0:USTF0_20250720
["timestamp","ask_amount","ask_price","bid_price","bid_amount"]
[1753021004764,0.80283033,118700.0,118690.0,0.82124365]
[1753021005266,0.80283033,118700.0,118690.0,1.18204365]
[1753021005467,0.5511075,118700.0,118690.0,1.18204365]
[1753021005772,0.5511075,118700.0,118690.0,0.82124365]
[1753021006071,0.5511075,118700.0,118690.0,1.18204365]
[1753021007867,0.80283033,118700.0,118690.0,1.18204365]
[1753021008963,0.80283033,118700.0,118690.0,0.82124365]
[1753021009171,0.5511075,118700.0,118690.0,1.18204365]
[1753021009375,0.5511075,118700.0,118690.0,0.82124365]
[1753021009972,0.5511075,118700.0,118690.0,1.18204365]
[1753021011365,0.38269,118700.0,118690.0,1.18204365]
[1753021011568,0.5511075,118700.0,118690.0,1.18204365]
[1753021012277,0.38269,118700.0,118690.0,1.1371917]
[1753021012477,0.5511075,118700.0,118690.0,1.1371917]
[1753021012672,0.38269,118700.0,118690.0,1.38891453]
[1753021012867,0.38269,118700.0,118690.0,1.1371917]
[1753021013073,0.38269,118700.0,118690.0,1.38891453]
[1753021013270,0.25825,118700.0,118690.0,1.38891453]
[1753021013469,0.125,118700.0,118690.0,1.38891453]
[1753021013778,0.125,118700.0,118690.0,1.44870808]
[1753021014276,0.125,118700.0,118690.0,1.1371917]
[1753021014577,0.125,118700.0,118690.0,1.38891453]
[1753021014773,0.125,118700.0,118690.0,1.44870808]
[1753021014966,0.125,118700.0,118690.0,1.45173808]
[1753021015478,0.125,118700.0,118690.0,1.20001525]
[1753021015673,0.125,118700.0,118690.0,1.45173808]
[1753021016269,0.02324,118740.0,118720.0,0.05861]
[1753021016471,0.02324,118740.0,118730.0,1.61019783]
[1753021016472,0.17454,118740.0,118730.0,1.61019783]
[1753021016670,0.17454,118740.0,118730.0,1.358475]
[1753021016877,0.08532,118740.0,118730.0,1.358475]
[1753021017580,0.09032,118740.0,118730.0,1.358475]
[1753021018074,0.09032,118740.0,118730.0,1.00347783]
[1753021018281,0.052,118740.0,118730.0,1.358435]
[1753021018482,0.055,118740.0,118730.0,1.61015783]
[1753021018982,0.3923608,118740.0,118730.0,1.358435]
[1753021019184,0.4815808,118740.0,118730.0,1.358435]
[1753021019677,0.4815808,118740.0,118730.0,1.41822855]
[1753021020079,0.4815808,118740.0,118730.0,1.62468852]
[1753021020283,0.4815808,118740.0,118730.0,1.48468852]
[1753021021082,0.73330363,118740.0,118730.0,0.06645997]
[1753021021278,0.73330363,118740.0,118730.0,0.6066]
[1753021021472,0.73330363,118740.0,118730.0,0.65153778]
[1753021021678,0.73330363,118740.0,118730.0,0.65151979]
[1753021021877,0.73330363,118740.0,118730.0,0.65143979]
[1753021022683,0.73330363,118740.0,118730.0,0.81981479]
[1753021023888,0.73330363,118740.0,118730.0,0.8877158]
[1753021024495,0.73330363,118740.0,118730.0,0.91765122]
[1753021024693,0.73330363,118740.0,118730.0,0.87273143]
[1753021024991,0.73330363,118740.0,118730.0,0.70435643]
[1753021025392,1.09410363,118740.0,118730.0,0.70435643]
[1753021025587,1.09410363,118740.0,118730.0,0.68137521]
[1753021025991,1.09410363,118740.0,118730.0,0.63645542]
[1753021026187,1.09410363,118740.0,118730.0,0.68137521]
[1753021026789,1.09410363,118740.0,118730.0,0.63645542]
[1753021026989,1.51254363,118740.0,118730.0,0.02993542]
[1753021028194,1.26254363,118740.0,118730.0,0.02993542]
[1753021029992,1.0108208,118740.0,118730.0,0.02993542]
[1753021030192,1.26254363,118740.0,118730.0,0.02993542]
[1753021030388,0.90174363,118740.0,118730.0,0.02993542]
[1753021030593,1.26254363,118740.0,118730.0,0.02993542]
[1753021030984,1.86898363,118740.0,118730.0,0.02993542]
[1753021031396,0.8423808,118740.0,118730.0,0.19831042]
[1753021031896,0.4815808,118740.0,118730.0,0.28729042]
[1753021032296,0.4815808,118740.0,118730.0,0.19831042]
[1753021032495,0.4815808,118740.0,118730.0,0.24323021]
[1753021032696,0.4815808,118740.0,118730.0,0.02993542]
[1753021032897,0.4815808,118740.0,118730.0,0.63637542]
[1753021033196,0.4815808,118740.0,118730.0,0.68129521]
[1753021033388,1.09410363,118740.0,118730.0,0.07485521]
[1753021033588,1.09410363,118740.0,118730.0,0.63633542]
[1753021034293,1.09410363,118740.0,118730.0,0.68125521]
[1753021034900,0.8423808,118740.0,118730.0,0.68125521]
[1753021035197,1.09410363,118740.0,118730.0,0.68125521]
[1753021035699,1.09410363,118740.0,118730.0,0.84963021]
[1753021036097,0.8423808,118740.0,118730.0,0.84963021]
[1753021036290,0.73330363,118740.0,118730.0,0.84963021]
[1753021036491,1.09410363,118740.0,118730.0,0.84963021]
[1753021037096,0.73330363,118740.0,118730.0,0.84963021]
[1753021037297,0.73330363,118740.0,118730.0,0.81969479]
[1753021037998,0.73330363,118740.0,118730.0,0.84965917]
[1753021038199,0.73330363,118740.0,118730.0,0.81969479]
[1753021038394,1.09410363,118740.0,118730.0,0.65131979]
[1753021038601,0.73330363,118740.0,118730.0,0.81969479]
[1753021041201,0.69617335,118740.0,118730.0,0.81969479]
[1753021042004,0.69617335,118740.0,118730.0,0.65131979]
[1753021042404,0.4815808,118740.0,118730.0,0.65131979]
[1753021042702,1.05697335,118740.0,118730.0,0.65131979]
[1753021042904,1.05697335,118740.0,118730.0,0.65116865]
[1753021044503,0.69617335,118740.0,118730.0,0.65116865]
[1753021044707,0.69617335,118740.0,118730.0,0.65126811]
[1753021045002,0.69617335,118740.0,118730.0,0.60624886]
[1753021045903,0.4815808,118740.0,118730.0,0.60624886]
[1753021046202,0.69617335,118740.0,118730.0,0.60624886]
[1753021048311,1.05697335,118740.0,118730.0,0.60624886]
[1753021049507,0.422575,118730.0,118720.0,0.15816618]
[1753021049706,1.09796755,118730.0,118720.0,0.93267538]
[1753021050010,1.09796755,118730.0,118720.0,0.76428618]
[1753021050609,1.09796755,118730.0,118720.0,0.99111538]
[1753021051108,1.09996755,118730.0,118720.0,0.82272618]
[1753021055614,0.885375,118730.0,118720.0,0.99111538]
[1753021055816,1.09996755,118730.0,118720.0,0.99111538]
[1753021056214,1.09996755,118730.0,118720.0,0.52159538]
[1753021056512,1.09996755,118730.0,118720.0,1.12755538]
[1753021057012,1.09996755,118730.0,118720.0,1.12751538]
[1753021057208,1.09996755,118730.0,118720.0,0.95912618]
[1753021057408,1.09996755,118730.0,118720.0,0.76408618]
[1753021057819,1.09996755,118730.0,118720.0,0.73284618]
[1753021058209,0.73916755,118730.0,118720.0,0.93247538]
[1753021058512,0.73916755,118730.0,118720.0,0.99091538]
[1753021059515,0.73916755,118730.0,118720.0,0.93112183]
[1753021060409,0.73916755,118730.0,118720.0,1.02171183]
[1753021060611,0.73916755,118730.0,118720.0,1.06768183]
[1753021061312,0.73916755,118730.0,118720.0,0.32520183]
[1753021061515,0.73916755,118730.0,118720.0,0.93100183]
[1753021063313,0.73916755,118730.0,118720.0,1.02163183]
[1753021063717,0.73916755,118730.0,118720.0,1.06760183]
[1753021064222,0.73916755,118730.0,118720.0,1.42840183]
[1753021064713,0.26678,118730.0,118720.0,1.64299438]
[1753021064917,0.294715,118730.0,118720.0,1.70278793]
[1753021065111,0.12634,118730.0,118720.0,1.70278793]
[1753021065318,0.17176,118730.0,118720.0,1.70278793]
[1753021065618,0.423495,118730.0,118720.0,1.70278793]
[1753021066513,0.421495,118730.0,118720.0,1.70278793]
[1753021067114,0.25312,118730.0,118720.0,1.70578793]
[1753021067420,0.421495,118730.0,118720.0,1.70578793]
[1753021069518,0.25312,118730.0,118720.0,1.70578793]
[1753021069825,0.421495,118730.0,118720.0,1.70578793]
[1753021071515,0.25312,118730.0,118720.0,1.70578793]
[1753021072117,0.1,118730.0,118720.0,1.70578793]
[1753021072319,0.1,118730.0,118720.0,1.64599438]
[1753021073218,0.1,118730.0,118720.0,1.72117978]
[1753021077425,0.4815776,118750.0,118740.0,0.2237608]
[1753021077621,0.4815776,118750.0,118740.0,1.28461847]
[1753021077622,0.3915776,118750.0,118740.0,1.28461847]
[1753021078025,0.19975,118750.0,118740.0,1.28461847]
[1753021078228,0.19975,118750.0,118740.0,1.49921102]
[1753021078630,0.20175,118750.0,118740.0,1.49921102]
[1753021079025,0.20175,118750.0,118740.0,1.28461847]
[1753021079225,0.20175,118750.0,118740.0,1.49921102]
[1753021079425,0.20175,118750.0,118740.0,1.86001102]
[1753021079620,0.3935666,118750.0,118740.0,1.86001102]
[1753021080230,0.3935666,118750.0,118740.0,1.64541847]
[1753021080430,0.3935666,118750.0,118740.0,1.86001102]
[1753021080832,0.22522,118750.0,118740.0,1.86001102]
[1753021081325,0.22522,118750.0,118740.0,1.64541847]
[1753021081534,0.20175,118750.0,118740.0,1.64541847]
[1753021081733,0.20175,118750.0,118740.0,1.86001102]
[1753021081931,0.3935666,118750.0,118740.0,1.86001102]
[1753021082535,0.22522,118750.0,118740.0,1.86001102]
[1753021082830,0.3935666,118750.0,118740.0,1.86001102]
[1753021083039,0.22522,118750.0,118740.0,1.86001102]
[1753021083238,0.3935666,118750.0,118740.0,1.86001102]
[1753021083935,0.22522,118750.0,118740.0,1.86001102]
[1753021084732,0.3935666,118750.0,118740.0,1.86001102]
[1753021086131,0.22522,118750.0,118740.0,1.86001102]
[1753021087229,0.20175,118750.0,118740.0,1.86001102]
[1753021087439,0.11874,118750.0,118740.0,1.86001102]
[1753021087837,0.20175,118750.0,118740.0,1.86001102]
[1753021088046,0.11874,118750.0,118740.0,1.86001102]
[1753021088249,0.072,118750.0,118740.0,1.79996335]
[1753021088444,0.18347,118770.0,118760.0,0.1683325]
[1753021088647,0.25322,118770.0,118760.0,1.85934196]
[1753021089040,0.22975,118770.0,118760.0,1.85934196]
[1753021089551,0.1,118770.0,118760.0,1.85934196]
[1753021090050,0.14674,118770.0,118760.0,1.85934196]
[1753021090350,0.25422,118770.0,118760.0,1.86679758]
[1753021090545,0.4225383,118770.0,118760.0,1.86679758]
[1753021091154,0.73827085,118770.0,118760.0,0.72746253]
[1753021091450,0.5236783,118770.0,118760.0,0.89579503]
[1753021091650,0.4650183,118770.0,118760.0,1.50591758]
[1753021091850,0.4225383,118770.0,118760.0,1.50591758]
[1753021092553,0.4225383,118770.0,118760.0,1.44603067]
[1753021092741,0.3990683,118770.0,118760.0,1.44603067]
[1753021093744,0.4225383,118770.0,118760.0,1.44591067]
[1753021093945,0.4225383,118770.0,118760.0,1.23131812]
[1753021094248,0.4235383,118770.0,118760.0,1.44591067]
[1753021094445,0.23175,118770.0,118760.0,1.44591067]
[1753021094650,0.14874,118770.0,118760.0,1.44591067]
[1753021096843,0.4235383,118770.0,118760.0,1.44591067]
[1753021097854,0.25522,118770.0,118760.0,1.44591067]
[1753021098255,0.23175,118770.0,118760.0,1.44591067]
[1753021098457,0.14874,118770.0,118760.0,1.44591067]
[1753021099245,0.06738,118770.0,118760.0,1.44591067]
[1753021099448,0.06738,118770.0,118760.0,1.11579013]
[1753021099651,0.06738,118770.0,118760.0,1.73734427]
[1753021099856,0.2206,118770.0,118760.0,1.52271172]
[1753021100659,0.2206,118770.0,118760.0,1.52258286]
[1753021100854,0.19713,118770.0,118760.0,1.52258286]
[1753021101049,0.19713,118770.0,118760.0,0.91826286]
[1753021101250,0.4900583,118770.0,118760.0,0.60918226]
[1753021101451,0.4900583,118770.0,118760.0,1.21346226]
[1753021101654,0.32174,118770.0,118760.0,1.21357226]
[1753021101855,0.32174,118770.0,118760.0,1.42816481]
[1753021102152,0.4890583,118770.0,118760.0,1.43116481]
[1753021102354,0.31974,118770.0,118760.0,1.43216481]
[1753021102549,0.31974,118770.0,118760.0,0.82788481]
[1753021102749,0.4880583,118770.0,118760.0,1.49192286]
[1753021103552,0.4880583,118770.0,118760.0,1.43216481]
[1753021104057,0.4880583,118770.0,118760.0,1.4919439]
[1753021104255,0.4880583,118770.0,118760.0,1.43216481]
[1753021104550,0.70265085,118770.0,118760.0,0.67297133]
[1753021104751,0.70265085,118770.0,118760.0,1.21730226]
[1753021105450,0.70265085,118770.0,118760.0,0.38199414]
[1753021105656,1.06345085,118770.0,118760.0,0.62531414]
[1753021105856,1.06345085,118770.0,118760.0,0.06406884]
[1753021106051,1.06345085,118770.0,118760.0,0.83648124]
[1753021106257,1.06345085,118770.0,118760.0,0.66814884]
[1753021106448,1.06345085,118770.0,118760.0,0.83648124]
[1753021107350,0.70265085,118770.0,118760.0,0.83648124]
[1753021107550,1.06345085,118770.0,118760.0,0.06406884]
[1753021107750,1.06345085,118770.0,118760.0,0.66814884]
[1753021107751,0.70265085,118770.0,118760.0,0.66814884]
[1753021107952,0.70265085,118770.0,118760.0,1.19728124]
[1753021108253,0.70265085,118770.0,118760.0,0.83648124]
[1753021109855,0.70265085,118770.0,118760.0,1.19728124]
[1753021110054,0.70265085,118770.0,118760.0,0.83648124]
[1753021110454,0.70265085,118770.0,118760.0,0.83719124]
[1753021110756,0.70265085,118770.0,118760.0,0.23311124]
[1753021110957,0.70265085,118770.0,118760.0,0.83707124]
[1753021111151,0.4880583,118770.0,118760.0,1.15299654]
[1753021111355,0.4880583,118770.0,118760.0,0.54903654]
[1753021111556,0.4880583,118770.0,118760.0,1.36754909]
[1753021112658,0.4880583,118770.0,118760.0,1.15295654]
[1753021112851,0.70265085,118770.0,118760.0,0.01919414]
[1753021113056,0.70265085,118770.0,118760.0,1.15220664]
[1753021113962,0.4880583,118770.0,118760.0,1.15220664]
[1753021114258,0.4880583,118770.0,118760.0,1.21195571]
[1753021115658,0.70265085,118770.0,118760.0,1.21195571]
[1753021116159,0.70265085,118770.0,118760.0,0.68282321]
[1753021116462,0.70265085,118770.0,118760.0,0.07898321]
[1753021116654,0.70265085,118770.0,118760.0,0.85107561]
[1753021117957,0.70265085,118770.0,118760.0,1.21187561]
[1753021118163,0.4880583,118770.0,118760.0,0.85107561]
[1753021118364,0.70265085,118770.0,118760.0,0.85107561]
[1753021118662,0.4880583,118770.0,118760.0,0.85107561]
[1753021120259,0.4880583,118770.0,118760.0,1.21187561]
[1753021120451,0.4880583,118770.0,118760.0,1.21171561]
[1753021122962,0.4880583,118770.0,118760.0,1.42622816]
[1753021123167,0.4880583,118770.0,118760.0,1.21163561]
[1753021124260,0.2186,118770.0,118760.0,1.42622816]
[1753021124656,0.19513,118770.0,118760.0,1.42622816]
[1753021124857,0.19513,118770.0,118760.0,1.36643909]
[1753021125166,0.19513,118770.0,118760.0,1.44162449]
[1753021125668,0.06538,118770.0,118760.0,1.58103164]
[1753021125968,0.06538,118770.0,118760.0,1.65590258]
[1753021126972,0.06538,118770.0,118760.0,1.44131003]
[1753021127968,0.06538,118770.0,118760.0,1.22671748]
[1753021128166,0.06538,118770.0,118760.0,1.44131003]
[1753021130069,0.06538,118770.0,118760.0,0.83779003]
[1753021130274,0.4995383,118770.0,118760.0,1.22647748]
[1753021130473,0.4995383,118770.0,118760.0,1.44107003]
[1753021131067,0.4995383,118770.0,118760.0,0.62315496]
[1753021131068,0.71413085,118770.0,118760.0,0.62315496]
[1753021131269,0.71413085,118770.0,118760.0,1.22639496]
[1753021131571,0.4995383,118770.0,118760.0,1.15156654]
[1753021132875,0.4995383,118770.0,118760.0,1.36615909]
[1753021133073,0.4995383,118770.0,118760.0,1.15156654]
[1753021133271,0.4995383,118770.0,118760.0,1.36615909]
[1753021134567,0.4995383,118770.0,118760.0,1.15156654]
[1753021138168,0.71413085,118770.0,118760.0,1.15140654]
[1753021138368,0.71413085,118770.0,118760.0,0.62315496]
[1753021138669,0.71413085,118770.0,118760.0,0.68213883]
[1753021138975,0.4995383,118770.0,118760.0,0.85047133]
[1753021139172,0.4995383,118770.0,118760.0,1.21127133]
[1753021139372,0.4995383,118770.0,118760.0,1.42586388]
[1753021139675,0.4995383,118770.0,118760.0,1.21127133]
[1753021139974,0.33122,118770.0,118760.0,1.42582388]
[1753021141181,0.06538,118770.0,118760.0,1.64041643]
[1753021141377,0.06538,118770.0,118760.0,1.58051174]
[1753021141774,0.06538,118770.0,118760.0,1.65534016]
[1753021142078,0.06538,118770.0,118760.0,1.58051174]
[1753021144277,0.4337191,118770.0,118760.0,0.62316311]
[1753021144575,0.70167165,118770.0,118760.0,1.22608311]
[1753021144982,0.4870791,118770.0,118760.0,0.54832664]
[1753021145182,0.70167165,118770.0,118760.0,0.37999414]
[1753021145380,0.70167165,118770.0,118760.0,1.28654101]
[1753021145585,0.70167165,118770.0,118760.0,1.21170454]
[1753021145780,0.70167165,118770.0,118760.0,1.04337124]
[1753021147081,0.8478791,118770.0,118760.0,0.68309124]
[1753021147276,1.06247165,118770.0,118760.0,0.66813019]
[1753021147476,0.8478791,118770.0,118760.0,0.66813019]
[1753021147884,1.06247165,118770.0,118760.0,0.66813019]
[1753021148586,0.8478791,118770.0,118760.0,0.66813019]
[1753021148787,1.06247165,118770.0,118760.0,0.66813019]
[1753021148986,1.06247165,118770.0,118760.0,0.06413019]
[1753021149885,1.23087165,118770.0,118760.0,0.06413019]
[1753021150386,1.23087165,118770.0,118760.0,0.09408628]
[1753021150780,1.06247165,118770.0,118760.0,0.07889214]
[1753021151079,0.8478791,118770.0,118760.0,0.07889214]
[1753021151285,1.66643165,118770.0,118760.0,0.07889214]
[1753021151679,0.4217274,118750.0,118740.0,1.1938077]
[1753021151880,0.75631995,118750.0,118740.0,0.4206971]
[1753021152088,0.75631995,118750.0,118740.0,0.6649371]
[1753021152288,0.2666916,118740.0,118730.0,1.31529015]
[1753021152587,0.5417416,118740.0,118730.0,1.31529015]
[1753021152791,0.75633415,118740.0,118730.0,1.24647795]
[1753021152985,0.75633415,118740.0,118730.0,0.64151795]
[1753021153186,0.75633415,118740.0,118730.0,1.24631795]
[1753021153381,0.75633415,118740.0,118730.0,1.2385121]
[1753021153791,0.75633415,118740.0,118730.0,1.2415121]
[1753021154688,0.5417416,118740.0,118730.0,1.46110465]
[1753021155289,0.5417416,118740.0,118730.0,1.50916465]
[1753021155990,0.5417416,118740.0,118730.0,1.53356465]
[1753021156778,0.5417416,118740.0,118730.0,0.8857229]
[1753021156982,0.5417416,118740.0,118730.0,1.2463629]
[1753021157483,0.5417416,118740.0,118730.0,0.8407929]
[1753021157682,0.75633415,118740.0,118730.0,0.8407929]
[1753021157884,0.75633415,118740.0,118730.0,0.6724171]
[1753021158084,0.75633415,118740.0,118730.0,0.0678971]
[1753021158286,0.75633415,118740.0,118730.0,0.6124]
[1753021158690,0.75633415,118740.0,118730.0,0.008]
[1753021158886,1.11713415,118740.0,118730.0,0.008]
[1753021159289,0.75633415,118740.0,118730.0,0.008]
[1753021159694,0.42177,118720.0,118710.0,0.01730914]
[1753021159890,0.76636255,118720.0,118710.0,0.01730914]
[1753021160188,0.76636255,118720.0,118710.0,0.07716592]
[1753021160790,1.37056255,118720.0,118710.0,0.07716592]
[1753021160993,0.3234542,118710.0,118700.0,0.05985678]
[1753021161192,0.8034214,118710.0,118700.0,0.22827518]
[1753021161394,0.5517842,118710.0,118700.0,0.24027518]
[1753021161794,0.5517842,118710.0,118700.0,0.2131884]
[1753021161992,0.5517842,118710.0,118700.0,0.27304518]
[1753021162284,0.4217984,118700.0,118690.0,0.58908778]
[1753021162488,0.5517984,118700.0,118690.0,1.19336778]
[1753021162889,0.5517984,118700.0,118690.0,1.19348778]
[1753021163695,0.5517984,118700.0,118690.0,1.19548778]
[1753021164097,0.5517984,118700.0,118690.0,1.135631]
[1753021164287,0.5517984,118700.0,118690.0,1.19548778]
[1753021164491,0.5517984,118700.0,118690.0,1.135631]
[1753021164897,0.5517984,118700.0,118690.0,1.19548778]
[1753021165088,0.5517984,118700.0,118690.0,0.63585778]
[1753021165294,0.5517984,118700.0,118690.0,1.179921]
[1753021166503,0.5517984,118700.0,118690.0,1.256051]
[1753021166706,0.5517984,118700.0,118690.0,1.5116082]
[1753021167903,0.5517984,118700.0,118690.0,1.5156082]
[1753021168303,0.20974,118700.0,118690.0,1.5156082]
[1753021168704,0.13,118700.0,118690.0,1.57546498]
[1753021169405,0.20974,118700.0,118690.0,1.56526498]
[1753021169704,0.3781584,118700.0,118690.0,1.56526498]
[1753021169906,0.5427784,118700.0,118690.0,0.70574778]
[1753021170101,0.5427784,118700.0,118690.0,1.30926778]
[1753021170606,0.5427784,118700.0,118690.0,1.56090498]
[1753021170809,0.5427784,118700.0,118690.0,1.249331]
[1753021171902,0.5427784,118700.0,118690.0,0.8975282]
[1753021172098,0.20974,118700.0,118690.0,1.5047682]
[1753021172298,0.20974,118700.0,118690.0,0.96130498]
[1753021172299,0.3781584,118700.0,118690.0,0.96130498]
[1753021172811,0.20974,118700.0,118690.0,1.56458498]
[1753021173010,0.13,118700.0,118690.0,1.56458498]
[1753021173306,0.2984184,118700.0,118690.0,1.56458498]
[1753021173503,0.13,118700.0,118690.0,1.56458498]
[1753021173708,0.3781584,118700.0,118690.0,0.94800498]
[1753021173900,0.3781584,118700.0,118690.0,1.55128498]
[1753021174405,0.3781584,118700.0,118690.0,0.94800498]
[1753021174710,0.4232684,118700.0,118690.0,1.55128498]
[1753021175107,0.5121784,118700.0,118690.0,0.94800498]
[1753021175410,0.5427784,118700.0,118690.0,1.54736498]
[1753021177104,0.5427784,118700.0,118690.0,1.55128498]
[1753021179315,0.5427784,118700.0,118690.0,1.4914282]
[1753021180013,0.5427784,118700.0,118690.0,1.56626467]
[1753021180514,0.5427784,118700.0,118690.0,1.56622467]
[1753021180714,0.5427784,118700.0,118690.0,1.31458747]
[1753021180915,0.5427784,118700.0,118690.0,1.56622467]
[1753021181112,0.5427784,118700.0,118690.0,1.4913882]
[1753021183216,0.5427784,118700.0,118690.0,1.454401]
[1753021183415,0.5427784,118700.0,118690.0,0.851161]
[1753021183815,0.5427784,118700.0,118690.0,1.454401]
[1753021184209,0.5427784,118700.0,118690.0,1.52923747]
[1753021184410,0.5427784,118700.0,118690.0,1.454401]
[1753021184811,0.5427784,118700.0,118690.0,1.093601]
[1753021185012,0.5427784,118700.0,118690.0,1.815201]
[1753021185212,0.13,118700.0,118690.0,1.89003747]
[1753021187220,0.20974,118700.0,118690.0,1.89003747]
[1753021187911,0.13,118700.0,118690.0,1.89003747]
[1753021188418,0.13,118700.0,118690.0,1.815201]
[1753021188722,0.20974,118700.0,118690.0,1.815201]
[1753021188920,0.3781584,118700.0,118690.0,1.815201]
[1753021189219,0.5427784,118700.0,118690.0,1.811201]
[1753021190314,0.5427784,118700.0,118690.0,1.91633989]
[1753021190720,0.5427784,118700.0,118690.0,1.91629989]
[1753021191025,0.5427784,118700.0,118690.0,1.811161]
[1753021193424,0.5427784,118700.0,118690.0,1.91629989]
[1753021193723,0.25485,118700.0,118690.0,1.91920989]
[1753021193916,0.20974,118700.0,118690.0,1.91920989]
[1753021197030,0.13,118700.0,118690.0,1.91920989]
[1753021197227,0.13,118700.0,118690.0,1.95606561]
[1753021197527,0.04990786,118700.0,118690.0,2.71606733]
[1753021197729,0.04990786,118700.0,118690.0,2.53962876]
[1753021198033,0.04990786,118700.0,118690.0,2.43448987]
[1753021198225,0.04990786,118700.0,118690.0,2.35942272]
[1753021198622,0.04990786,118700.0,118690.0,2.01942272]
[1753021198931,0.04990786,118700.0,118690.0,2.39942272]
[1753021199124,0.04990786,118700.0,118690.0,2.4744196]
[1753021201430,0.3459,118720.0,118710.0,0.1684042]
[1753021201628,0.251,118720.0,118710.0,1.8196068]
[1753021202133,0.251,118720.0,118710.0,1.74460992]
[1753021202833,0.12,118720.0,118710.0,1.84974881]
[1753021203428,0.12,118720.0,118710.0,1.85174881]
[1753021203632,0.251,118720.0,118710.0,1.85174881]
[1753021204429,0.12,118720.0,118710.0,1.86658336]
[1753021204635,0.12,118720.0,118710.0,1.94549433]
[1753021204839,0.12,118720.0,118710.0,1.84035544]
[1753021205033,0.251,118720.0,118710.0,1.84035544]
[1753021205435,0.251,118720.0,118710.0,1.84135544]
[1753021206834,0.251,118720.0,118710.0,1.84035544]
[1753021207138,0.251,118720.0,118710.0,1.84335544]
[1753021208137,0.251,118720.0,118710.0,1.24035544]
[1753021208338,0.37353,118720.0,118710.0,1.24025544]
[1753021208537,0.54192,118720.0,118710.0,1.24025544]
[1753021208743,0.37353,118720.0,118710.0,1.76814447]
[1753021208936,0.37353,118720.0,118710.0,1.76824447]
[1753021209740,0.31989,118720.0,118710.0,1.51673875]
[1753021210039,0.31989,118720.0,118710.0,1.84315544]
[1753021210239,0.31989,118720.0,118710.0,1.84015544]
[1753021210441,0.31989,118720.0,118710.0,1.84115544]
[1753021210644,0.31989,118720.0,118710.0,1.76624447]
[1753021211032,0.31989,118720.0,118710.0,1.84111417]
[1753021211247,0.31989,118720.0,118710.0,1.83911417]
[1753021212340,0.31989,118720.0,118710.0,1.23631417]
[1753021212546,0.37353,118720.0,118710.0,1.23631417]
[1753021212737,0.37353,118720.0,118710.0,1.58756845]
[1753021213038,0.37353,118720.0,118710.0,1.83907417]
[1753021213437,0.37353,118720.0,118710.0,1.83797417]
[1753021213638,0.37353,118720.0,118710.0,1.83997417]
[1753021214044,0.37353,118720.0,118710.0,1.83797417]
[1753021214246,0.37353,118720.0,118710.0,1.84107417]
[1753021216040,0.2759,118720.0,118710.0,1.23831417]
[1753021216246,0.2759,118720.0,118710.0,1.84103417]
[1753021217244,0.251,118720.0,118710.0,1.80407735]
[1753021217446,0.2759,118720.0,118710.0,1.80407735]
[1753021218637,0.2759,118720.0,118710.0,1.58952845]
[1753021218844,0.2759,118720.0,118710.0,1.72920765]
[1753021219350,0.2759,118720.0,118710.0,1.80414241]
[1753021220439,0.2759,118720.0,118710.0,1.20142241]
[1753021220643,0.30815,118720.0,118710.0,1.80406241]
[1753021220948,0.37353,118720.0,118710.0,1.58951351]
[1753021221643,0.37353,118720.0,118710.0,1.80406241]
[1753021224245,0.31989,118720.0,118710.0,1.80406241]
[1753021224643,0.2759,118720.0,118710.0,1.80406241]
[1753021225148,0.2759,118720.0,118710.0,1.20142241]
[1753021225444,0.2759,118720.0,118710.0,1.80398241]
[1753021226043,0.2759,118720.0,118710.0,1.51449875]
[1753021226250,0.2759,118720.0,118710.0,1.72904765]
[1753021227151,0.30654,118720.0,118710.0,1.83418654]
[1753021227350,0.37147,118720.0,118710.0,1.23152654]
[1753021227538,0.37147,118720.0,118710.0,1.83408654]
[1753021228740,0.2759,118720.0,118710.0,1.72894765]
[1753021228948,0.12,118720.0,118710.0,1.72894765]
[1753021229144,0.12,118720.0,118710.0,1.94349655]
[1753021229145,0.00626483,118720.0,118710.0,1.94349655]
[1753021229349,0.00626483,118720.0,118710.0,1.72894765]
[1753021230546,0.00626483,118720.0,118710.0,2.25349655]
[1753021230751,0.00626483,118720.0,118710.0,2.32858507]
[1753021230944,0.00626483,118720.0,118710.0,2.25349655]
[1753021231451,0.00626483,118720.0,118710.0,2.26349655]
[1753021232348,3e-08,118720.0,118710.0,2.26349655]
[1753021232652,3e-08,118720.0,118710.0,2.32349655]
[1753021232949,3e-08,118720.0,118710.0,2.49196855]
[1753021233247,0.09001614,118740.0,118730.0,0.1683758]
[1753021233454,0.14865,118760.0,118750.0,0.2269775]
[1753021233649,0.18865,118760.0,118750.0,1.85832846]
[1753021233954,0.18865,118760.0,118750.0,1.7833064]
[1753021234151,0.18865,118760.0,118750.0,1.88833793]
[1753021234356,0.27272,118760.0,118750.0,1.88833793]
[1753021234548,0.27272,118760.0,118750.0,1.74000764]
[1753021234754,0.28401,118760.0,118750.0,1.93673654]
[1753021235550,0.5217233,118760.0,118750.0,1.80898501]
[1753021235854,0.5217233,118760.0,118750.0,1.88391866]
[1753021236351,0.35339,118760.0,118750.0,1.90663866]
[1753021236551,0.5217233,118760.0,118750.0,1.90663866]
[1753021237354,0.5217233,118760.0,118750.0,1.69208976]
[1753021237546,0.5217233,118760.0,118750.0,1.90663866]
[1753021238850,0.5217233,118760.0,118750.0,1.69208976]
[1753021239349,0.5217233,118760.0,118750.0,1.80894501]
[1753021239748,0.7362722,118760.0,118750.0,1.02929861]
[1753021240251,0.7362722,118760.0,118750.0,1.25754423]
[1753021240451,0.7362722,118760.0,118750.0,0.48691673]
[1753021240646,0.7362722,118760.0,118750.0,1.08919673]
[1753021240853,0.7362722,118760.0,118750.0,1.25754423]
[1753021241051,0.7362722,118760.0,118750.0,1.19764611]
[1753021241549,0.7362722,118760.0,118750.0,0.65526423]
[1753021241946,0.7362722,118760.0,118750.0,1.25754423]
[1753021242456,0.7362722,118760.0,118750.0,0.65526423]
[1753021242657,0.5217233,118760.0,118750.0,1.25754423]
[1753021242951,0.1683475,118750.0,118740.0,0.6133305]
[1753021243159,0.7505164,118750.0,118740.0,1.2155705]
[1753021243352,0.7505164,118750.0,118740.0,0.6133305]
[1753021243948,0.5359675,118750.0,118740.0,0.67937593]
[1753021244154,0.7505164,118750.0,118740.0,0.63728573]
[1753021245761,0.7525164,118750.0,118740.0,0.63728573]
[1753021246956,0.7525164,118750.0,118740.0,0.96059463]
[1753021246957,0.37062,118750.0,118740.0,0.96059463]
[1753021247147,0.5389675,118750.0,118740.0,1.14992573]
[1753021247350,0.5389675,118750.0,118740.0,1.32139463]
[1753021247653,0.5389675,118750.0,118740.0,1.10684573]
[1753021248364,0.5369675,118750.0,118740.0,1.10784573]
[1753021249159,0.5359675,118750.0,118740.0,1.10784573]
[1753021251263,0.5359675,118750.0,118740.0,0.74704573]
[1753021253063,0.5359675,118750.0,118740.0,0.80697343]